Cogmind - Beta 10.1 @@@ ROGUE MODE // 2020.09.28 @ 05:34:39 Player: spruce Result: Destroyed by D-53 Grenadier with Mini Grenade Launcher Performance ------------- Evolutions (0) 0 Regions Visited (2) 400 Robots Destroyed (5) 25 Value Destroyed (111) 111 Prototype IDs (0) 0 Alien Tech Used (0) 0 Bonus (0) 0 TOTAL SCORE: 536 Bonus ------- None Cogmind --------- Core Integrity 0/250 Matter 295/300 Energy 88/100 System Corruption 3% Temperature Cool (0) Movement Core (150) Ox2 Location -10/Mines Parts ------- > --- POWER (1) -------- (None) > --- PROPULSION (2) --- (None) > --- UTILITY (2) ------ Small Storage Unit Improved Trap Extractor > --- WEAPON (2) ------- (None) > --- INVENTORY (6) ---- Ion Engine Armored Wheel Armored Wheel Improved Heat Sink Advanced Signal Interpreter Hardened Light Armor Plating Peak State ------------ > --- POWER ------------ Ion Engine > --- PROPULSION ------- Aluminum Leg Aluminum Leg > --- UTILITY ---------- Small Storage Unit Improved Trap Extractor > --- WEAPON ----------- Electrolaser Beamcaster > --- INVENTORY -------- Light Ion Engine Armored Wheel Armored Wheel Improved Heat Sink Advanced Signal Interpreter Hardened Light Armor Plating [Rating: 17] Favorites ----------- Power Ion Engine Engine Ion Engine Propulsion Aluminum Leg Leg Aluminum Leg Utility Small Storage Unit Device Improved Trap Extractor Storage Small Storage Unit Protection Hardened Light Armor Plating Weapon EM Pulse Gun Energy Gun EM Pulse Gun Ballistic Gun Assault Rifle Build | -11 -10 -10 ------- Run | Scr Mat Min Slots Evolved . | . . . Power . | . . . Propulsion . | . . . Utility . | . . . Weapon . | . . . Parts Attached 14 | 5 5 4 Power 1 | . 1 . Engine 1 | . 1 . Core . | . . . Reactor . | . . . Propulsion 2 | 2 . . Treads . | . . . Leg 2 | 2 . . Wheel . | . . . Hover . | . . . Flight . | . . . Utility 3 | 1 1 1 Device 1 | . . 1 Storage 1 | 1 . . Processor . | . . . Hackware . | . . . Protection 1 | . 1 . Artifact . | . . . Weapon 8 | 2 3 3 Energy Gun 7 | 2 2 3 Energy Cannon . | . . . Ballistic Gun 1 | . 1 . Ballistic Cannon . | . . . Launcher . | . . . Special Weapon . | . . . Impact Weapon . | . . . Slashing Weapon . | . . . Piercing Weapon . | . . . Special Melee Weapon . | . . . Unidentified Prototypes . | . . . Parts Lost 9 | . 3 6 Power 1 | . . 1 Propulsion 2 | . . 2 Utility . | . . . Weapon 6 | . 3 3 Highest Loss Streak 6 | . 2 6 Average Slot Usage (%) 88 | . 79 95 Engine 11 | . 7 13 Leg 26 | . 28 26 Device 8 | . . 13 Storage 14 | . 14 14 Energy Gun 23 | . 20 25 Ballistic Gun 2 | . 5 . Naked Turns . | . . . Heaviest Build 20 | 8 18 20 Greatest Support 20 | 20 20 20 Greatest Overweight (x) 2 | . . 2 Average Overweight (x) . | . . . Largest Inventory Capacity 6 | 6 6 6 Average Capacity 5 | 5 6 6 Most Carried 6 | 5 6 6 Average Carried 5 | 2 5 5 Final Capacity 6 | 6 6 6 Final Carried 6 | 5 6 6 Class Distribution -------------------- 100% | Mutant Dominant Class ---------------- Mutant | -10/Materials Mutant | -10/Mines Resources | -11 -10 -10 ----------- Run | Scr Mat Min Matter Collected 339 | 216 80 43 Remotely . | . . . Salvage Created 158 | . 109 49 Parts 13 | . 8 5 Haulers Intercepted . | . . . Recyclers Shooed . | . . . Parts Field Recycled . | . . . Retrieved Matter . | . . . Parts Self-Destructed . | . . . Prevented . | . . . Kills | -11 -10 -10 ------- Run | Scr Mat Min Combat Hostiles Destroyed 5 | . 4 1 Melee 1 | . . 1 Guns 4 | . 4 . Classes Destroyed 2 | . 2 . Swarmer 3 | . 3 . Grunt 2 | . 1 1 Best Kill Streak 3 | . 3 1 Combat Bots Only 3 | . 3 1 Max Kills in Single Turn 1 | . 1 1 Gunslinging . | . . . Exploded . | . . . Melee 1 | . . 1 Uniques/NPCs Destroyed . | . . . Combat | -11 -10 -10 -------- Run | Scr Mat Min Damage Taken 881 | . 364 517 Core 255 | . 57 198 Absorbed by Shields . | . . . Core Remaining (%) 100 | 100 . . Volleys Fired 26 | . 23 3 Largest 2 | . 2 2 Hottest 138 | . 105 138 Shots Fired 40 | . 36 4 Gun 40 | . 36 4 Cannon . | . . . Launcher . | . . . Special . | . . . Kinetic 8 | . 8 . Thermal 9 | . 5 4 Explosive . | . . . Electromagnetic 23 | . 23 . Robot Hit Streak 8 | . 8 1 Robot Miss Streak 3 | . 3 2 Penetration Max . | . . . Secondary Targets 2 | . 2 . Max Gunslinging Chain 1 | . 1 . Shots Hit Robots 28 | . 26 2 Core Hits 10 | . 6 4 Critical Hits 1 | . 1 . Critical Kills . | . . . Critical Parts Destroyed 1 | . 1 . Melee Attacks . | . . . Impact . | . . . Slashing . | . . . Piercing . | . . . Sneak Attacks . | . . . Combat Hostiles . | . . . Follow-up Attacks . | . . . Damage Inflicted 414 | . 395 19 Guns 376 | . 364 12 Cannons . | . . . Explosions 31 | . 31 . Melee . | . . . Ramming 7 | . . 7 Kinetic 65 | . 65 . Thermal 119 | . 107 12 Explosive . | . . . Electromagnetic 223 | . 223 . Impact . | . . . Slashing . | . . . Piercing . | . . . Highest Corruption 3 | . . 3 Average Corruption 1 | . . 1 Corruption Purged . | . . . Overload Shots . | . . . Overflow Damage . | . . . Projectiles . | . . . Explosions . | . . . Melee . | . . . Knockbacks . | . . . Impact . | . . . Kinetic . | . . . Secondary . | . . . Self-Inflicted Damage 1 | . . 1 Shots . | . . . Rammed 8 | . . 8 Targets Rammed 8 | . . 8 Kicked . | . . . Crushed . | . . . Highest Temperature 174 | . 174 90 Average Temperature 83 | . 87 50 Received Heat Transfer 225 | . 147 78 Siege Activations . | . . . Robots Corrupted . | . . . Combat Hostiles . | . . . Parts Fried . | . . . Impact Corruptions . | . . . Robots Melted . | . . . Combat Hostiles . | . . . Parts Melted . | . . . Heat Transferred 260 | . 235 25 Parts Sabotaged . | . . . Parts Stolen . | . . . Parts Stripped . | . . . Power Chain Reactions 1 | . 1 . Missiles Intercepted . | . . . Alert | -11 -10 -10 ------- Run | Scr Mat Min Peak Influence 95 | . 95 36 Initial 36 | . . 36 Average 30 | . 41 27 Maximum Alert Level . | . . . Low Security (%) 100 | 100 100 100 Level 1 . | . . . Level 2 . | . . . Level 3 . | . . . Level 4 . | . . . Level 5 . | . . . High Security . | . . . Max Security . | . . . Squads Dispatched 1 | . 1 . Investigation . | . . . Extermination . | . . . Reinforcement 1 | . 1 . Assault . | . . . Garrison . | . . . Intercept . | . . . Construction Impeded . | . . . Haulers Reinforced . | . . . Stealth | -11 -10 -10 --------- Run | Scr Mat Min Distress Signals 1 | . 1 . Communications Jammed . | . . . Distress Signals . | . . . Times Spotted 22 | . 16 6 Peak Tracking Total 5 | . 5 5 Tactical Retreats 3 | . 3 . Traps | -11 -10 -10 ------- Run | Scr Mat Min Traps Triggered 1 | . . 1 Indirectly . | . . . Trap Hack Attempts . | . . . Triggered . | . . . Disarmed . | . . . Reprogrammed . | . . . Reused . | . . . Traps Extracted . | . . . Installed . | . . . Triggered . | . . . Machines | -11 -10 -10 ---------- Run | Scr Mat Min Machines Disabled . | . . . Max in Single Turn . | . . . Machines Sabotaged . | . . . Garrisons Compromised . | . . . Overloaded Fab Kills . | . . . Fab Network Shutdowns . | . . . Hacking | -11 -10 -10 --------- Run | Scr Mat Min Machines Accessed 3 | . 2 1 Terminals 2 | . 2 . Fabricators . | . . . Repair Stations . | . . . Recycling Units . | . . . Scanalyzers . | . . . Garrison Access . | . . . Total Hacks 7 | . 6 1 Successful 1 | . . 1 Failed 6 | . 6 . Catastrophic 1 | . 1 . Database Lockouts . | . . . Manual 4 | . 4 . Terminals 6 | . 6 . Fabricators . | . . . Repair Stations . | . . . Recycling Units . | . . . Scanalyzers . | . . . Garrison Access . | . . . Terminal Hacks 1 | . . 1 Open Door 1 | . . 1 Fabricator Hacks . | . . . Repair Station Hacks . | . . . Recycling Unit Hacks . | . . . Scanalyzer . | . . . Garrison Access Hacks . | . . . Unauthorized Hacks . | . . . Terminals . | . . . Fabricators . | . . . Repair Stations . | . . . Recycling Units . | . . . Scanalyzers . | . . . Garrison Access . | . . . Data Cores Recovered . | . . . Used . | . . . Hacking Detections 2 | . 2 . Full Trace Events 1 | . 1 . Feedback Events . | . . . Feedback Blocked . | . . . Robot Schematics Acquired . | . . . Robots Built . | . . . Matter . | . . . Time . | . . . Total Robot Build Rating . | . . . Part Schematics Acquired . | . . . Parts Built . | . . . Matter . | . . . Time . | . . . Total Part Build Rating . | . . . Parts Repaired . | . . . Time . | . . . Parts Recycled . | . . . Recycled Matter . | . . . Retrieved Matter . | . . . Retrieved Components . | . . . Parts Scanalyzed . | . . . Part Schematics Acquired . | . . . Parts Damaged . | . . . Bothacking | -11 -10 -10 ------------ Run | Scr Mat Min Used RIF Installer . | . . . Robots Hacked . | . . . Non-combat . | . . . Combat . | . . . Robot Hacks Applied . | . . . Relay Couplers Released . | . . . Robots Rewired . | . . . Allies Hacked . | . . . Hacks Repelled . | . . . Allies | -11 -10 -10 -------- Run | Scr Mat Min Total Allies 2 | . . 2 Largest Group 2 | . . 2 Highest-Rated Group 46 | . . 46 Highest-Rated Ally 31 | . . 31 Total Orders . | . . . Ally Attacks 1 | . . 1 Total Damage 20 | . . 20 Kills . | . . . Allies Corrupted . | . . . Allies Melted . | . . . Intel | -11 -10 -10 ------- Run | Scr Mat Min Robot Analysis Total . | . . . Derelict Logs Recovered 1 | . . 1 Drone Launches . | . . . Drone Recoveries . | . . . Exploration | -11 -10 -10 ------------- Run | Scr Mat Min Turns Passed 891 | 91 329 471 Spaces Moved 623 | 74 201 348 Core 18 | 16 . 2 Treads . | . . . Legs 605 | 58 201 346 Wheels . | . . . Hover . | . . . Flight . | . . . Fastest Speed 50 | 50 120 120 Average Speed 118 | 104 120 121 Slowest Speed 150 | 120 120 150 Overloaded Moves . | . . . Propulsion Burnouts . | . . . Robots Hopped . | . . . Cave-ins Triggered . | . . . Exploration Rate (%) 38 | 4 42 70 Regions Visited 2 Branch Regions 1 Pre-discovered Areas 2 | . . 2 Known Exits Taken . | . . . Unknown Exits Taken 2 | 1 1 . Scrap Searched 1 | . . 1 Spaces Dug . | . . . Terrain Destroyed 4 | . 4 . Melee . | . . . Projectile . | . . . AOE 4 | . 4 . Terrain Rammed . | . . . Walls Destroyed . | . . . Machines Disabled . | . . . Actions | -11 -10 -10 --------- Run | Scr Mat Min Total 730 | 85 253 392 Wait 37 | . 17 20 Move 621 | 73 200 348 Hop . | . . . Pick Up 15 | 6 6 3 Fast Attach 11 | 5 2 4 Attach 3 | . 3 . Detach . | . . . Swap . | . . . Drop 9 | 1 2 6 Fire 26 | . 23 3 Melee . | . . . Ram 6 | . . 6 Kick 2 | . . 2 Crush . | . . . Escape Stasis . | . . . Rewire . | . . . Trap . | . . . Miscellaneous . | . . . Route ------- -11/Scrapyard -10/Materials (discovered 2 exits: [*Mat] / *Min) -10/Mines (discovered 1 exit: [*Mat]) History --------- Turn | Location | Event 2 | -11/Scrapyard | Met Revision 17 4 | -11/Scrapyard | Discovered new exit (range 15) 92 | -11/Scrapyard | Entered Materials 304 | -10/Materials | Build established: Mutant 307 | -10/Materials | Discovered new exit (range 14) 413 | -10/Materials | Discovered new exit (range 8) 421 | -10/Materials | Entered Mines 427 | -10/Mines | Met a Derelict who couldn't figure out how to use a Trap Extractor 474 | -10/Mines | Learned location of Storage (-7) 636 | -10/Mines | Discovered new exit (range 16) 765 | -10/Mines | Assembled infested the area 874 | -10/Mines | Core integrity fell below 50% 891 | -10/Mines | Core integrity fell below 20% 892 | -10/Mines | Destroyed by D-53 Grenadier with Mini Grenade Launcher Last Messages --------------- 00881_ Slammed into G-34 Mercenary. 00882_ U-05 Engineer lays Concrete. 00883_ The unstable cave ceiling collapses. 00883_ U-05 Engineer lays Concrete. 00883_ K-01 Serf collects debris. 00884_ U-05 Engineer lays Concrete. 00884_ Slammed into G-34 Mercenary. 00884_ G-34 Mercenary destroyed. 00884_ U-05 Engineer lays Concrete. 00886_ U-05 Engineer builds a Wall. 00887_ Acquired Sml. Laser. 00887_ U-05 Engineer lays Concrete. 00889_ K-01 Serf collects debris. 00890_ U-05 Engineer lays Concrete. 00890_ Sml. Laser destroyed. 00890_ D-53 Grenadier destroyed. 00890_ U-05 Engineer lays Concrete. 00890_ K-01 Serf destroyed. 00891_ U-05 Engineer lays Concrete. 00892_ K-01 Serf collects debris. Map ----- +----------------------------------------------------+ | ??????????????????????????????????# #??????? | | ???????????????????????????????????# ##?????? | | ????????????????????????????????????# #?????? | | ?????????????????????????????????????# #?????? | | ?????????????????? ?????????????????# ##?????? | | ????????????????? ?????????????????# #??????? | | ???????????????? ##???????????????## #??????? | | ???????????????? ##???????????????## ######## | | ??????????????? #???????????????# | | ???????????????? # ?????????????### ######## | | ??????????###???? #???????????## #??????# | | ??????????# ??# ##????????### #??????# | | ??????????# # ## #???????## #??????# | | ??????????# # #######?# ##??????# | | ??????????# # # ?# #???????# | | ??????????# # ## ##???##### | | ######### # r##???# ##????# | | # #u ##??## # #?????# ### | | #### d##### ## ##?????# #?? | | ??##### ### !%% u ## #####??????# #?? | | ??????????# ### #?????????# #?? | | ?????????? # # ## ## #?????????# #?? | | ???????????????????## % ##?????????# ### | | ????????????????????# % #?????????## | | ???????????????????## = #?????????# | | ???????????????????# *@=%=% k #?????????# | | ???????????????????# ##?????????# | | ??????????????????## ###??????????## | | ??????????????????# #####??????????## | | ??????????????????# #????????### | | ??????????????????## #???????## | | ???????????????????### ## #???????# """" | | ?????????????????????# # ## #???????# """" | | ?????????????????????# ## ## ########## """" | | ?????????????????????# ### ### #?# | | ?????????????????????# #?####?## ##### #?# | | ?????????????????????# #???????# #???# #?# | | ?????????????????????# #???????# #???# #?## | | ?????????????????????# #???????# #??## ##?##### | | ?????????????????????# #???????# #?## ##????## | | ?????????????????????# #??????## ### ##????## | | ?????????????????????# #?????## ##????? | | ?????????????????????# #?????# #????? | | ?????????????????????# #????## ##???? | | ?????????????????????# #???## ####? | | ?????????????????????# #??## ## | | ???????????????????### #??# # | | ???????????????????# #?## # | | ???????????????????# ###### # | | ???????????????????# #?## # | +----------------------------------------------------+ Best States ------------- Heat Dissipation 25 Energy Generation 10 Energy Capacity 250 Matter Stores 300 Matter Capacity 300 Sight Range 16 Terrain Scan Density 10 Armor Coverage 150 Evasion (%) 50 Item Schematics ----------------- None Robot Schematics ------------------ None Fabricated ------------ Nothing Alien Tech Used ----------------- None Achievements -------------- None Challenges ------------ None Game ------ Seed TargetMakeshiftMatter Manual? 0 Play Time 00:08:40 Cumulative 191.1 hours Start 2020.09.28 @ 05:28:59 End 2020.09.28 @ 05:34:39 Sessions 1 Manual Loads 0 Difficulty Rogue Special Mode None Game No. 243 Rogue 243 Adventurer 0 Explorer 0 Win Type - Total 10 Types 2/3/0/1/1/3/0/0/0 Lore% 92 Gallery% 91 Achievement% 72 Wizard Run 0 Options --------- ASCII 0 Keyboard 0 Movement Numpad Keybinds 0 Fullscreen 1 Font 24/Smallcaps Map View 76x50 Tactical HUD 1 Map Filters NONE Filters NONE Steam 1 RUN: 609fe2b5-122a-49af-98b7-b255868565d2